bitfinex/quotes_BTCUSD_20240918
["timestamp","ask_amount","ask_price","bid_price","bid_amount"]
[1726682920186,1.60843381,60257.0,60256.0,0.0031613]
[1726682920392,1.60843381,60257.0,60251.0,0.0001]
[1726682920393,1.6883028,60252.0,60251.0,0.0001]
[1726682920606,2.12919725,60252.0,60251.0,0.0001]
[1726682920819,2.15919725,60252.0,60251.0,0.0001]
[1726682921045,2.15919725,60252.0,60224.0,0.0078462]
[1726682921046,0.6,60236.0,60224.0,0.99666138]
[1726682921283,1.30179525,60225.0,60224.0,0.00235379]
[1726682921547,1.70934576,60225.0,60224.0,0.00235379]
[1726682921976,0.789079,60212.0,60211.0,0.0001]
[1726682922186,3.17089459,60212.0,60211.0,0.0001]
[1726682922396,1.24932763,60197.0,60196.0,0.00043]
[1726682922624,2.70097878,60197.0,60196.0,0.00033]
[1726682922861,3.03322078,60197.0,60196.0,0.00033]
[1726682923088,1.662945,60192.0,60191.0,0.0002]
[1726682923329,1.56701513,60192.0,60191.0,0.0002]
[1726682923572,0.71174513,60192.0,60191.0,0.0002]
[1726682923833,0.1,60180.0,60159.0,0.332451]
[1726682924054,0.1,60180.0,60157.0,0.00043]
[1726682924055,0.1,60159.0,60157.0,0.00043]
[1726682924267,1.97261501,60158.0,60157.0,0.00043]
[1726682924484,2.66096461,60158.0,60157.0,0.00043]
[1726682924700,2.66096461,60158.0,60148.0,0.0031613]
[1726682924701,0.266233,60157.0,60148.0,0.0031613]
[1726682924915,1.82982261,60158.0,60149.0,0.01405845]
[1726682924916,0.1,60154.0,60149.0,0.01405845]
[1726682925175,0.17502764,60154.0,60149.0,0.002]
[1726682925432,0.17502764,60154.0,60148.0,0.0031613]
[1726682925433,0.1,60149.0,60148.0,0.0031613]
[1726682925646,0.07813902,60149.0,60148.0,0.0031613]
[1726682926127,0.5,60142.0,60125.0,0.01205845]
[1726682926345,1.09430759,60157.0,60132.0,0.99430759]
[1726682926346,0.39348482,60141.0,60132.0,0.99430759]
[1726682926585,0.07409006,60140.0,60131.0,0.0001]
[1726682926816,0.07409006,60140.0,60133.0,0.00385971]
[1726682926817,0.666295,60134.0,60133.0,0.00385971]
[1726682927049,0.89471318,60134.0,60131.0,0.0001]
[1726682927282,1.84880959,60132.0,60131.0,0.0001]
[1726682927500,1.25039871,60132.0,60131.0,0.0001]
[1726682927731,1.78394126,60132.0,60131.0,0.0001]
[1726682927978,2.08654226,60132.0,60131.0,0.0001]
[1726682928217,1.77362367,60118.0,60117.0,0.0078462]
[1726682928477,2.50037503,60118.0,60117.0,0.0078462]
[1726682928689,2.83305403,60118.0,60117.0,0.0078462]
[1726682928900,1.02512086,60118.0,60117.0,0.02190465]
[1726682929123,0.5,60139.0,60117.0,0.02190465]
[1726682929124,0.07541195,60130.0,60123.0,0.01205845]
[1726682929339,0.07541195,60130.0,60129.0,0.18036745]
[1726682929560,0.07541195,60130.0,60129.0,0.51071323]
[1726682929795,0.07541195,60130.0,60129.0,0.89675125]
[1726682930008,0.07541195,60130.0,60129.0,0.84881823]
[1726682930285,0.066665,60157.0,60147.0,0.01267623]
[1726682930520,0.07318237,60156.0,60142.0,0.01178623]
[1726682930730,0.07318237,60156.0,60137.0,0.332572]
[1726682930731,0.07318237,60156.0,60147.0,0.01267623]
[1726682930939,0.9975477,60154.0,60150.0,0.01178623]
[1726682931160,0.9975477,60154.0,60147.0,0.00089]
[1726682931161,0.9975477,60153.0,60152.0,0.01178623]
[1726682931381,0.07318237,60156.0,60155.0,0.17802323]
[1726682931382,0.07268237,60156.0,60155.0,0.17802323]
[1726682931871,0.07268237,60156.0,60155.0,0.0157723]
[1726682932082,0.09876389,60156.0,60155.0,0.17891323]
[1726682932298,0.09876389,60156.0,60155.0,0.17802323]
[1726682932508,0.01740237,60166.0,60165.0,0.17799523]
[1726682932744,0.07325529,60175.0,60167.0,0.03478623]
[1726682932984,0.9975477,60184.0,60183.0,0.84258323]
[1726682933367,0.9975477,60184.0,60183.0,1.17490223]
[1726682933449,0.9975477,60184.0,60183.0,0.8475935]
[1726682933651,0.07472689,60209.0,60196.0,0.00089]
[1726682933652,1.15110967,60208.0,60196.0,0.00089]
[1726682933879,0.39226187,60199.0,60183.0,0.00412027]
[1726682934127,0.39226187,60199.0,60184.0,0.26102398]
[1726682934128,0.332239,60198.0,60184.0,0.26102398]
[1726682934376,0.332257,60195.0,60181.0,0.00089]
[1726682934632,0.0733352,60199.0,60188.0,0.01178623]
[1726682934889,0.99682677,60197.0,60188.0,0.01178623]
[1726682935108,0.0733352,60199.0,60198.0,0.17879423]
[1726682935370,0.99682677,60224.0,60223.0,0.01178623]
[1726682935636,0.99682677,60224.0,60217.0,0.01178623]
[1726682935900,0.07310608,60229.0,60228.0,0.01178623]
[1726682936147,0.0031613,60238.0,60237.0,0.17779623]
[1726682936417,0.0031613,60238.0,60237.0,0.34380723]
[1726682936660,0.0031613,60238.0,60237.0,0.5387124]
[1726682936925,0.0031613,60238.0,60237.0,0.01528721]
[1726682937179,0.0031613,60238.0,60237.0,0.18218721]
[1726682937470,0.001658,60245.0,60237.0,0.01617721]
[1726682937714,0.0002,60259.0,60258.0,0.53964523]
[1726682937966,0.0002,60259.0,60258.0,0.87244123]
[1726682938212,0.0002,60259.0,60258.0,0.96293626]
[1726682938484,0.0002,60259.0,60258.0,0.00325091]
[1726682938764,0.0002,60259.0,60258.0,0.01178623]
[1726682939033,0.99682677,60280.0,60265.0,0.01178623]
[1726682939308,0.066526,60287.0,60277.0,0.06478623]
[1726682939805,0.165863,60291.0,60277.0,0.01267623]
[1726682939806,0.165853,60295.0,60277.0,0.20857623]
[1726682940058,0.331882,60299.0,60277.0,0.20857623]
[1726682940059,0.0068462,60278.0,60277.0,0.56337723]
[1726682940329,0.0002,60299.0,60277.0,0.56337723]
[1726682940330,0.0002,60299.0,60298.0,0.20762823]
[1726682940604,0.0002,60299.0,60282.0,0.01178623]
[1726682940935,0.5,60291.0,60267.0,0.01178623]
[1726682941118,0.497643,60284.0,60283.0,0.99682677]
[1726682941365,0.165885,60283.0,60274.0,0.01178623]
[1726682941630,0.165876,60286.0,60282.0,1.008613]
[1726682941872,0.5,60300.0,60285.0,0.01178623]
[1726682941873,0.1,60289.0,60285.0,0.01178623]
[1726682942141,0.1,60289.0,60273.0,0.01178623]
[1726682942359,0.1,60284.0,60282.0,0.99682677]
[1726682942608,0.331686,60298.0,60284.0,0.01178623]
[1726682942858,0.331686,60298.0,60283.0,0.09968268]
[1726682942859,0.0002,60299.0,60298.0,0.01178623]
[1726682943374,0.0002,60299.0,60286.0,0.01178623]
[1726682943626,0.99682677,60298.0,60288.0,0.01178623]
[1726682943878,0.001658,60291.0,60288.0,0.01178623]
[1726682944167,0.001658,60291.0,60290.0,0.01178623]
[1726682944437,0.0002,60299.0,60298.0,0.53931323]
[1726682944969,0.99682677,60312.0,60308.0,0.56223123]
[1726682944971,0.0001,60316.0,60308.0,0.89386123]
[1726682945239,0.0001,60316.0,60315.0,0.56217423]
[1726682945477,0.0001,60316.0,60315.0,0.01178623]
[1726682945726,0.0001,60316.0,60315.0,0.56637957]
[1726682945995,0.99998807,60345.0,60336.0,0.01178623]
[1726682946270,0.99998807,60345.0,60337.0,0.01178623]
[1726682946545,0.99998807,60345.0,60344.0,0.23050223]
[1726682946546,0.0031613,60345.0,60344.0,0.23050223]
[1726682946786,0.0031613,60345.0,60344.0,1.03673529]
[1726682947051,0.0031613,60345.0,60344.0,0.53893523]
[1726682947324,0.0031613,60345.0,60344.0,0.87125823]
[1726682947572,0.0031613,60345.0,60344.0,0.53893523]
[1726682947844,0.0031613,60345.0,60344.0,0.7028789]
[1726682948093,0.0031613,60345.0,60344.0,0.53893523]
[1726682948378,0.0031613,60345.0,60334.0,0.01178623]
[1726682948966,0.0031613,60345.0,60331.0,0.24857278]
[1726682948970,0.0031613,60345.0,60340.0,0.01178623]
[1726682949211,0.0031613,60345.0,60329.0,0.03]
[1726682949212,0.0031613,60345.0,60344.0,0.01178623]
[1726682949940,0.0031613,60345.0,60344.0,0.01267623]
[1726682950203,0.0031613,60345.0,60344.0,0.01178623]
[1726682950470,0.0031613,60345.0,60340.0,0.01178623]
[1726682950722,0.0031613,60345.0,60328.0,0.01178623]
[1726682950723,0.09,60342.0,60328.0,0.01178623]
[1726682951017,0.09,60342.0,60340.0,0.99439822]
[1726682951309,0.09,60342.0,60341.0,0.99439822]
[1726682951581,0.0031613,60345.0,60344.0,0.01178623]
[1726682952089,0.0031613,60345.0,60338.0,0.01178623]
[1726682952358,0.0031613,60345.0,60342.0,0.01178623]
[1726682952881,0.99439822,60343.0,60334.0,0.01178623]
[1726682952883,0.0031613,60345.0,60335.0,0.01178623]
[1726682952884,0.1,60336.0,60335.0,0.01178623]
[1726682953160,0.1,60335.0,60334.0,0.01178623]
[1726682953417,0.1,60335.0,60308.0,0.03]
[1726682953418,0.1,60335.0,60314.0,0.01178623]
[1726682953699,1.49439822,60343.0,60292.0,0.1812]
[1726682953700,0.1,60322.0,60321.0,0.01178623]
[1726682953976,0.1,60314.0,60299.0,0.01178623]
[1726682954230,0.1,60311.0,60294.0,0.01178623]
[1726682954471,0.1,60311.0,60301.0,0.01178623]
[1726682954472,0.331644,60306.0,60301.0,0.01178623]
[1726682954741,0.165768,60326.0,60314.0,0.01178623]
[1726682955027,0.31892667,60338.0,60320.0,0.01178623]
[1726682955560,0.165767,60326.0,60324.0,0.01178623]
[1726682955563,0.165768,60325.0,60324.0,0.01178623]
[1726682955837,0.0031613,60345.0,60344.0,0.01178623]
[1726682956074,0.0031613,60345.0,60321.0,1.02439822]
[1726682956075,0.0031613,60345.0,60329.0,0.01178623]
[1726682956314,0.31892667,60339.0,60317.0,0.00089]
[1726682956595,0.31892667,60339.0,60326.0,0.01178623]
[1726682956841,0.31892667,60339.0,60312.0,0.331604]
[1726682956842,0.165772,60324.0,60322.0,0.01178623]
[1726682957066,0.31892667,60347.0,60330.0,0.01178623]
[1726682957285,0.001654,60336.0,60330.0,0.01178623]
[1726682957498,0.1,60327.0,60326.0,0.01178623]
[1726682957719,0.001654,60336.0,60335.0,0.01178623]
[1726682957953,0.167392,60336.0,60335.0,0.01178623]
[1726682958179,0.001654,60336.0,60335.0,0.01178623]
[1726682959083,0.001654,60336.0,60335.0,0.17752723]
[1726682959378,0.001654,60336.0,60335.0,0.54321337]
[1726682959615,0.001654,60336.0,60335.0,0.50989923]
[1726682959839,0.000654,60336.0,60335.0,0.17752723]
[1726682960056,0.000654,60336.0,60335.0,0.50900923]
[1726682960279,0.000654,60336.0,60335.0,0.17752723]
[1726682960505,0.165742,60335.0,60332.0,0.01178623]
[1726682960733,0.0028153,60345.0,60344.0,0.01178623]
[1726682961215,0.331427,60345.0,60344.0,0.01178623]
[1726682961442,0.265708,60347.0,60346.0,0.01178623]
[1726682961677,0.0078462,60350.0,60336.0,0.01178623]
[1726682961678,0.165735,60337.0,60336.0,0.01178623]
[1726682961923,0.1,60344.0,60334.0,0.01178623]
[1726682962145,0.165749,60332.0,60331.0,0.24860986]
[1726682962365,0.34860986,60344.0,60324.0,0.24860986]
[1726682962366,0.1,60329.0,60325.0,0.01178623]
[1726682962581,0.597305,60325.0,60324.0,0.26039609]
[1726682962803,1.260379,60325.0,60324.0,0.24860986]
[1726682963044,0.165796,60315.0,60314.0,0.01178623]
[1726682963285,0.497388,60315.0,60314.0,0.01178623]
[1726682963508,0.24860986,60319.0,60316.0,0.01178623]
[1726682963752,0.24971986,60335.0,60322.0,0.01178623]
[1726682963753,0.24860986,60335.0,60322.0,0.01178623]
[1726682963976,0.24860986,60335.0,60334.0,0.00089]
[1726682964196,0.514568,60352.0,60334.0,0.00089]
[1726682964197,0.99445591,60349.0,60347.0,0.01178623]
[1726682964670,0.165713,60345.0,60344.0,0.01178623]
[1726682964894,0.0078462,60350.0,60349.0,0.01178623]
[1726682964895,0.1735462,60350.0,60349.0,0.01178623]
[1726682965110,0.8363462,60350.0,60349.0,0.01178623]
[1726682966008,0.0078462,60350.0,60349.0,0.01178623]
[1726682966232,0.5049462,60350.0,60349.0,0.01178623]
[1726682966449,0.165708,60347.0,60346.0,0.01178623]
[1726682966663,0.165706,60348.0,60346.0,0.01178623]
[1726682966908,0.0078462,60350.0,60344.0,0.01178623]
[1726682966909,0.165713,60345.0,60344.0,0.01178623]
[1726682967152,0.331414,60348.0,60341.0,0.01178623]
[1726682967390,0.0078462,60350.0,60331.0,0.24855836]
[1726682967391,0.1,60349.0,60348.0,0.01178623]
[1726682967614,0.1,60349.0,60346.0,0.24855836]
[1726682967615,0.1735462,60350.0,60349.0,0.01178623]
[1726682968067,0.5049462,60350.0,60349.0,0.01178623]
[1726682968296,0.1735462,60350.0,60349.0,0.01178623]
[1726682968522,0.5049462,60350.0,60349.0,0.01178623]
[1726682968738,0.8363462,60350.0,60349.0,0.01178623]
[1726682968953,0.5049462,60350.0,60349.0,0.01178623]
[1726682969375,0.0078462,60350.0,60345.0,0.01178623]
[1726682969590,0.5049462,60350.0,60349.0,0.01178623]
[1726682969806,0.8363462,60350.0,60349.0,0.01178623]
[1726682970027,1.1677462,60350.0,60349.0,0.01178623]
[1726682970263,1.1677462,60350.0,60331.0,0.24944836]
[1726682970264,0.497182,60340.0,60339.0,0.01178623]
[1726682970489,0.497223,60335.0,60334.0,0.01178623]
[1726682970732,1.160187,60335.0,60334.0,0.01178623]
[1726682970975,1.260187,60335.0,60334.0,0.01178623]
[1726682971420,1.260187,60335.0,60292.0,0.02831469]
[1726682971421,0.24855836,60323.0,60292.0,0.02831469]
[1726682971637,0.829007,60313.0,60312.0,0.24855836]
[1726682971856,0.66940857,60335.0,60312.0,0.24855836]
[1726682971857,0.31892667,60340.0,60312.0,0.27855836]
[1726682972102,0.3236,60349.0,60324.0,0.03]
[1726682972343,0.3236,60349.0,60313.0,0.00331484]
[1726682972344,0.331572,60319.0,60313.0,0.00089]
[1726682972566,0.99492588,60334.0,60314.0,0.99492588]
[1726682972567,0.82898,60315.0,60314.0,0.99492588]
[1726682972791,0.82898,60315.0,60292.0,0.03]
[1726682972792,0.8292,60299.0,60290.0,0.03089]
[1726682973011,0.8292,60299.0,60274.0,0.02839459]
[1726682973012,1.16088,60299.0,60287.0,0.03]
[1726682973452,0.331661,60303.0,60287.0,0.03]
[1726682973683,0.31892667,60312.0,60294.0,0.99492588]
[1726682973684,0.497553,60295.0,60294.0,0.99492588]
[1726682973927,1.09492588,60314.0,60295.0,0.00089]
[1726682974161,1.09492588,60314.0,60294.0,1.02492588]
[1726682974162,0.1,60311.0,60301.0,0.03]
[1726682974396,0.1,60311.0,60297.0,0.00089]
[1726682974397,0.99492588,60321.0,60307.0,0.03]
[1726682974622,0.99492588,60321.0,60309.0,0.03]
[1726682974870,0.31892667,60338.0,60309.0,0.03]
[1726682975098,0.00111,60339.0,60322.0,0.03]
[1726682975099,0.99492588,60331.0,60322.0,0.03]
[1726682975321,0.99492588,60346.0,60330.0,0.03]
[1726682975538,0.99492588,60338.0,60334.0,0.03]
[1726682975768,0.99492588,60346.0,60334.0,0.03]
[1726682975769,0.165741,60335.0,60334.0,0.03]
[1726682976196,0.165738,60336.0,60335.0,0.00089]
[1726682976409,0.165741,60335.0,60334.0,0.03]
[1726682976866,0.4392502,60350.0,60338.0,0.03]
[1726682976867,0.00145254,60348.0,60338.0,0.03]
[1726682977082,0.497166,60342.0,60341.0,0.03]
[1726682977323,0.00145254,60348.0,60342.0,0.03]
[1726682977543,0.165719,60343.0,60342.0,0.03]
[1726682977772,0.165719,60343.0,60342.0,0.03089]
[1726682978241,0.001658,60370.0,60358.0,0.03]
[1726682978475,0.24849248,60369.0,60368.0,0.03]
[1726682978741,0.24849248,60369.0,60367.0,0.00089]
[1726682978742,0.0031613,60381.0,60375.0,0.03]
[1726682978951,0.0031613,60381.0,60380.0,0.362125]
[1726682979171,0.0031613,60381.0,60372.0,0.431274]
[1726682979172,0.25014448,60403.0,60384.0,0.00089]
[1726682979173,0.001652,60396.0,60384.0,0.00089]
[1726682979401,0.331186,60389.0,60383.0,0.00331152]
[1726682979638,0.31892667,60390.0,60370.0,0.00089]
[1726682980518,0.001652,60396.0,60370.0,0.00089]
[1726682980728,0.165611,60383.0,60372.0,0.03]
[1726682980942,0.165611,60383.0,60370.0,0.00089]
[1726682980943,0.33119,60389.0,60379.0,0.03]
[1726682981158,0.165598,60388.0,60379.0,0.03]
[1726682981387,0.165594,60389.0,60384.0,0.03]
[1726682981605,0.001652,60396.0,60384.0,0.03]
[1726682981818,0.001652,60396.0,60384.0,0.03331125]
[1726682982040,0.001652,60396.0,60379.0,0.03]
[1726682982255,0.001652,60396.0,60355.0,0.31892667]
[1726682982256,0.331192,60388.0,60375.0,0.00089]
[1726682982490,0.331192,60388.0,60380.0,0.99374767]
[1726682982711,0.165616,60381.0,60377.0,0.00089]
[1726682982928,0.1,60387.0,60371.0,0.00089]
[1726682983156,0.99539967,60396.0,60378.0,0.99374767]
[1726682983157,0.001652,60396.0,60378.0,0.99374767]
[1726682983377,0.331195,60388.0,60379.0,0.00331175]
[1726682983616,0.1,60394.0,60375.0,0.00089]
[1726682983617,0.331235,60380.0,60375.0,0.00089]
[1726682983852,0.1734512,60385.0,60376.0,0.99374767]
[1726682984063,0.0078462,60385.0,60377.0,1.12952327]
[1726682984278,0.0078462,60385.0,60374.0,0.00089]
[1726682984492,0.0078462,60385.0,60383.0,0.99374767]
[1726682984710,0.0078462,60385.0,60379.0,0.03]
[1726682985186,0.0078462,60385.0,60376.0,0.03]
[1726682985392,0.0094982,60385.0,60377.0,0.99374767]
[1726682985813,0.0094982,60385.0,60383.0,0.03]
[1726682986022,0.0094982,60385.0,60383.0,0.03331139]
[1726682986462,0.0094982,60385.0,60383.0,0.03331129]
[1726682986671,0.0094982,60385.0,60384.0,0.19305367]
[1726682986884,0.0094982,60385.0,60383.0,0.0226365]
[1726682987098,0.0094982,60385.0,60373.0,0.03]
[1726682987099,0.0094982,60385.0,60378.0,0.03]
[1726682987311,0.0094982,60385.0,60377.0,0.00089]
[1726682987548,0.0094982,60385.0,60380.0,0.24841017]
[1726682987761,0.0094982,60385.0,60383.0,0.03]
[1726682987978,0.25026417,60399.0,60383.0,0.03]
[1726682987979,0.331091,60407.0,60383.0,0.03]
[1726682988192,0.331116,60402.0,60385.0,0.03]
[1726682988406,1.31256737,60410.0,60387.0,0.9936407]
[1726682988618,0.331166,60393.0,60379.0,0.03]
[1726682988829,0.31892667,60401.0,60388.0,0.9936407]
[1726682989046,1.31256737,60409.0,60390.0,0.9936407]
[1726682989281,0.331117,60402.0,60391.0,0.00331095]
[1726682989528,1.31572867,60417.0,60392.0,0.9936407]
[1726682989529,0.331071,60410.0,60392.0,0.9936407]
[1726682989768,0.165578,60395.0,60392.0,0.9936407]
[1726682990005,0.331136,60399.0,60393.0,0.9936407]
[1726682990271,0.331136,60399.0,60381.0,1.3248657]
[1726682990272,0.165591,60390.0,60385.0,0.03]
[1726682990541,0.1,60408.0,60389.0,0.9936407]
[1726682990761,0.165576,60395.0,60386.0,0.0765877]
[1726682990971,0.1,60408.0,60386.0,0.0765877]
[1726682990972,0.1,60408.0,60391.0,0.9936407]
[1726682991197,0.1,60408.0,60393.0,0.9936407]
[1726682991198,0.165551,60405.0,60393.0,0.9936407]
[1726682991443,1.31572867,60417.0,60394.0,0.00331068]
[1726682991701,0.9936407,60416.0,60395.0,0.9936407]
[1726682991927,0.331084,60408.0,60396.0,0.0033107]
[1726682992155,0.331051,60414.0,60398.0,1.1592067]
[1726682992379,0.0031613,60417.0,60403.0,0.03]
[1726682992588,0.0031613,60417.0,60404.0,0.05605924]
[1726682992801,0.0031613,60417.0,60404.0,0.22160924]
[1726682993017,0.0031613,60417.0,60405.0,0.165549]
[1726682993244,0.0031613,60417.0,60410.0,0.195534]
[1726682993455,0.0031613,60417.0,60406.0,0.03]
[1726682993665,0.0031613,60417.0,60407.0,0.04113499]
[1726682993875,0.0031613,60417.0,60407.0,1.03477569]
[1726682994087,0.0031613,60417.0,60408.0,0.19636369]
[1726682994303,0.0031613,60417.0,60413.0,0.03]
[1726682994514,0.0031613,60417.0,60414.0,0.00330968]
[1726682994727,0.0031613,60417.0,60408.0,0.19305367]
[1726682994943,0.0031613,60417.0,60409.0,0.00330979]
[1726682995158,0.0031613,60417.0,60416.0,0.165519]
[1726682995387,0.0031613,60417.0,60416.0,0.36188209]
[1726682995680,0.0002,60419.0,60418.0,0.218513]
[1726682995933,0.0002,60419.0,60418.0,0.880567]
[1726682996202,0.0002,60419.0,60418.0,0.22663563]
[1726682997228,0.0002,60419.0,60418.0,0.22752563]
[1726682998069,0.0002,60419.0,60418.0,0.72406563]
[1726682998461,0.0002,60419.0,60418.0,0.39303863]
[1726682998463,0.0002,60419.0,60418.0,0.03447196]
[1726682998693,0.0002,60419.0,60413.0,0.00089]
[1726682998911,0.0002,60419.0,60414.0,0.24829299]
[1726682999311,0.0002,60419.0,60415.0,0.00330955]
[1726682999835,0.0002,60419.0,60402.0,0.03]
[1726683000096,0.35118446,60411.0,60393.0,0.00089]
[1726683000362,0.0002,60419.0,60409.0,0.99329526]
[1726683000363,0.1,60410.0,60409.0,0.99329526]
[1726683000616,0.1,60414.0,60402.0,0.99329526]
[1726683000942,0.0002,60419.0,60402.0,0.99329526]
[1726683000943,0.0002,60419.0,60411.0,0.99329526]
[1726683001136,0.0002,60419.0,60412.0,0.00330979]
[1726683001391,0.0002,60419.0,60396.0,0.361146]
[1726683001662,0.165565,60399.0,60398.0,0.99329526]
[1726683001908,0.0002,60419.0,60409.0,0.03]
[1726683002155,0.99329526,60410.0,60407.0,0.03]
[1726683002411,0.0002,60419.0,60418.0,0.195513]
[1726683002662,0.99329526,60434.0,60433.0,0.66189]
[1726683002907,0.99329526,60434.0,60433.0,0.828252]
[1726683003160,0.00165,60438.0,60433.0,0.16305367]
[1726683003407,0.00165,60438.0,60437.0,0.880307]
[1726683003684,0.001652,60446.0,60445.0,0.857197]
[1726683003935,0.001652,60446.0,60445.0,1.35112967]
[1726683004206,0.001652,60446.0,60445.0,0.99025067]
[1726683004459,0.001652,60446.0,60445.0,0.35849267]
[1726683004766,0.001652,60446.0,60445.0,1.38697894]
[1726683004915,0.24815743,60462.0,60456.0,0.195409]
[1726683005127,0.24815743,60462.0,60456.0,1.02010067]
[1726683005345,0.24815743,60462.0,60456.0,0.68928167]
[1726683005566,0.000825,60466.0,60456.0,0.68928167]
[1726683006044,0.24815743,60464.0,60452.0,0.00089]
[1726683006272,0.000825,60466.0,60456.0,0.165409]
[1726683006499,0.000825,60466.0,60465.0,0.361659]
[1726683006716,0.000825,60466.0,60465.0,1.37463467]
[1726683006974,0.000825,60466.0,60465.0,0.189274]
[1726683007192,0.000825,60466.0,60465.0,0.69340361]
[1726683007409,0.000825,60466.0,60465.0,1.14959137]
[1726683007629,0.000825,60466.0,60465.0,1.61036037]
[1726683007853,0.0002,60479.0,60478.0,0.90023146]
[1726683008075,0.24815743,60491.0,60488.0,0.548966]
[1726683008298,0.0030613,60489.0,60488.0,1.80484167]
[1726683008515,0.000825,60518.0,60498.0,0.219184]
[1726683008740,0.24815743,60504.0,60498.0,0.495883]
[1726683008960,0.24815743,60503.0,60497.0,0.165297]
[1726683009173,0.001646,60511.0,60495.0,0.00089]
[1726683009174,0.001646,60511.0,60498.0,0.03]
[1726683009392,0.001646,60511.0,60497.0,0.03]
[1726683009604,0.001646,60511.0,60498.0,0.218294]
[1726683009822,0.001646,60511.0,60495.0,0.00089]
[1726683010037,0.330559,60504.0,60493.0,0.00089]
[1726683010292,0.001646,60511.0,60491.0,0.165313]
[1726683010293,0.33053,60509.0,60497.0,0.00089]
[1726683010536,0.1653,60496.0,60489.0,0.165319]
[1726683010748,0.1,60504.0,60495.0,0.24815743]
[1726683010969,0.1,60504.0,60473.0,0.03]
[1726683010970,0.330599,60497.0,60473.0,0.03]
[1726683011197,0.496039,60479.0,60478.0,0.24815743]
[1726683011405,0.1,60486.0,60478.0,0.24815743]
[1726683011628,0.1,60486.0,60468.0,0.00089]
[1726683011900,0.165371,60470.0,60468.0,0.00089]
[1726683012123,0.496113,60470.0,60468.0,0.00089]
[1726683012373,0.165373,60469.0,60468.0,0.00089]
[1726683012600,0.496203,60459.0,60458.0,0.00089]
[1726683012828,0.496203,60459.0,60443.0,0.03]
[1726683012829,0.1,60458.0,60430.0,0.00089]
[1726683013047,0.1,60458.0,60443.0,0.99199788]
[1726683013048,0.330884,60444.0,60443.0,0.99199788]
[1726683013295,0.330884,60444.0,60436.0,0.99199788]
[1726683013296,0.165461,60437.0,60436.0,0.99199788]
[1726683013508,0.1,60436.0,60411.0,0.331061]
[1726683013721,0.1,60436.0,60410.0,0.03]
[1726683013722,0.1,60436.0,60428.0,0.99199788]
[1726683013940,0.99199788,60435.0,60420.0,0.00089]
[1726683014155,0.330962,60430.0,60420.0,0.00089]
[1726683014379,0.330962,60430.0,60421.0,0.00330923]
[1726683014380,0.330961,60430.0,60421.0,0.00330923]
[1726683014614,0.330923,60437.0,60422.0,0.01688212]
[1726683014836,0.99199788,60429.0,60405.0,0.00089]
[1726683015048,0.1,60426.0,60395.0,0.00089]
[1726683015263,0.1,60418.0,60395.0,0.332038]
[1726683015502,0.1,60418.0,60397.0,0.00089]
[1726683015713,0.331063,60412.0,60404.0,0.99199788]
[1726683015928,0.331039,60416.0,60405.0,0.10007341]
[1726683016176,0.165529,60413.0,60402.0,0.00089]
[1726683016389,0.1,60418.0,60404.0,0.99530837]
[1726683016603,0.99199788,60416.0,60404.0,0.00331049]
[1726683016816,0.99199788,60415.0,60405.0,0.19305367]
[1726683017029,0.99199788,60426.0,60409.0,0.331075]
[1726683017249,0.99199788,60426.0,60413.0,0.00089]
[1726683017491,0.99199788,60426.0,60414.0,0.19636327]
[1726683017711,0.304,60438.0,60424.0,0.330991]
[1726683017938,0.00111,60456.0,60424.0,0.330991]
[1726683017939,0.99199788,60426.0,60425.0,0.496477]
[1726683018168,0.165448,60442.0,60434.0,0.00089]
[1726683018426,1.32286188,60448.0,60434.0,0.00330895]
[1726683018651,1.32286188,60448.0,60431.0,0.330954]
[1726683018652,0.99199788,60448.0,60440.0,0.166343]
[1726683018861,0.99199788,60448.0,60446.0,0.165435]
[1726683019090,0.03,60408.0,60401.0,0.16556]
[1726683019322,0.3091,60428.0,60416.0,0.165518]
[1726683019323,0.03,60418.0,60416.0,0.165518]
[1726683019537,0.195502,60422.0,60414.0,0.165524]
[1726683019744,0.03,60418.0,60404.0,0.21382312]
[1726683019961,0.496654,60404.0,60399.0,0.0031613]
[1726683020216,0.03,60412.0,60400.0,0.33112]
[1726683020430,0.24831354,60411.0,60408.0,0.16554]
[1726683020655,0.24831354,60418.0,60411.0,0.165531]
[1726683020886,0.24831354,60418.0,60408.0,0.16305367]
[1726683021104,0.24831354,60418.0,60416.0,0.165516]
[1726683021336,0.24831354,60418.0,60410.0,0.331068]
[1726683021568,0.03,60431.0,60417.0,0.331029]
[1726683021779,0.24831354,60421.0,60420.0,0.496524]
[1726683021996,0.99294184,60434.0,60412.0,0.1]
[1726683022215,0.99294184,60425.0,60419.0,0.33102]
[1726683022446,0.99294184,60434.0,60428.0,0.165484]
[1726683022672,0.000821,60416.0,60413.0,0.01494122]
[1726683022898,0.000821,60416.0,60406.0,0.1]
[1726683022899,0.000821,60416.0,60415.0,1.48950584]
[1726683023115,0.000821,60416.0,60415.0,1.44470367]
[1726683023324,0.000821,60416.0,60415.0,1.42170367]
[1726683023566,0.000821,60416.0,60415.0,1.44470367]
[1726683023783,0.000821,60416.0,60415.0,1.58917404]
[1726683024219,0.99294184,60426.0,60425.0,1.181458]
[1726683024429,0.99294184,60433.0,60425.0,1.181458]
[1726683024430,0.99294184,60433.0,60432.0,0.596425]
[1726683024649,0.99284184,60433.0,60432.0,1.11342867]
[1726683024880,0.99294184,60441.0,60440.0,0.496359]
[1726683025102,0.99294184,60441.0,60432.0,0.28605367]
[1726683025103,0.99294184,60441.0,60432.0,0.16305367]
[1726683025320,0.03,60451.0,60438.0,0.330912]
[1726683025321,0.24819439,60449.0,60438.0,0.330912]
[1726683025532,0.24819439,60442.0,60433.0,0.17935904]
[1726683025742,0.330864,60448.0,60433.0,0.17935904]
[1726683025958,0.165435,60447.0,60441.0,0.165448]
[1726683026207,0.99265436,60446.0,60433.0,0.17935904]
[1726683026666,0.99265436,60446.0,60441.0,0.330899]
[1726683026886,0.99265436,60446.0,60445.0,0.165439]
[1726683027106,0.99265436,60446.0,60433.0,0.17935904]
[1726683027337,0.330835,60454.0,60433.0,0.17935904]
[1726683027338,0.03,60453.0,60443.0,0.165444]
[1726683027562,0.99265436,60446.0,60438.0,0.330914]